bitfinex/quotes_SOLUSD_20240915
["timestamp","ask_amount","ask_price","bid_price","bid_amount"]
[1726439153335,403.32473528,132.28,132.22,15.41280985]
[1726439153511,20.0,132.27,132.24,7.5619]
[1726439154334,20.0,132.27,132.22,15.41280985]
[1726439157135,20.0,132.27,132.24,7.5619]
[1726439159640,20.0,132.27,132.18,16.3616]
[1726439159641,27.5603,132.27,132.18,16.3616]
[1726439159843,27.5603,132.27,132.22,15.41280985]
[1726439160438,31.337884,132.26,132.18,16.3616]
[1726439160629,31.337884,132.26,132.2,15.41280985]
[1726439161032,31.337884,132.26,132.22,7.5628]
[1726439161227,23.776884,132.26,132.18,16.3616]
[1726439161428,31.337884,132.26,132.22,7.5627]
[1726439161651,23.776884,132.26,132.22,7.5627]
[1726439162243,27.5604,132.27,132.23,7.5621]
[1726439164533,20.0,132.27,132.24,7.5617]
[1726439178056,9.22471876,132.28,132.26,15.41280985]
[1726439178264,1.31713528,132.28,132.27,15.41280985]
[1726439179135,0.2487391,132.29,132.27,15.41280985]
[1726439179340,7.8357391,132.29,132.27,22.97300985]
[1726439179742,7.8357391,132.29,132.28,22.97250985]
[1726439180365,0.2487391,132.29,132.28,22.97250985]
[1726439192667,0.2487391,132.29,132.28,39.63370985]
[1726439193668,0.2487391,132.29,132.28,24.2209]
[1726439193868,0.2487391,132.29,132.28,7.5597]
[1726439196067,0.2487391,132.29,132.27,7.5601]
[1726439197868,0.2487391,132.29,132.28,7.5597]
[1726439198073,0.2487391,132.29,132.28,22.97250985]
[1726439201959,0.2487391,132.29,132.28,7.5597]
[1726439202168,0.2487391,132.29,132.28,22.97250985]
[1726439203676,0.2487391,132.29,132.28,7.5597]
[1726439203972,0.2487391,132.29,132.28,22.97250985]
[1726439213883,23.776884,132.32,132.29,7.5588]
[1726439217086,23.776884,132.32,132.3,7.5585]
[1726439218091,23.776884,132.32,132.29,7.5589]
[1726439218268,23.776884,132.32,132.3,7.5584]
[1726439218476,23.776884,132.33,132.3,7.5584]
[1726439219364,23.776884,132.33,132.31,7.5579]
[1726439219784,20.0,132.34,132.32,7.5572]
[1726439219971,20.0,132.35,132.32,7.5572]
[1726439220165,20.0,132.35,132.32,22.97000985]
[1726439220466,20.0,132.35,132.33,7.5568]
[1726439220973,20.0,132.35,132.32,22.97000985]
[1726439221567,20.0,132.35,132.32,7.5572]
[1726439225380,20.0,132.35,132.33,15.41280985]
[1726439225575,43.776884,132.35,132.33,15.41280985]
[1726439226090,23.776884,132.35,132.33,15.41280985]
[1726439226291,43.776884,132.36,132.33,15.41280985]
[1726439226492,43.776884,132.36,132.32,15.41280985]
[1726439227493,43.776884,132.36,132.33,7.5567]
[1726439230004,23.776884,132.36,132.34,22.96900985]
[1726439231989,387.1650198,132.37,132.35,15.41280985]
[1726439232189,387.1650198,132.37,132.36,15.41280985]
[1726439232378,0.2487391,132.37,132.36,15.41280985]
[1726439233101,0.2487391,132.37,132.34,15.41280985]
[1726439233272,24.0256231,132.37,132.33,7.5567]
[1726439233477,31.5803231,132.37,132.33,7.5567]
[1726439233795,31.5803231,132.37,132.33,22.96950985]
[1726439234598,23.776884,132.35,132.29,22.8323]
[1726439234800,23.776884,132.35,132.31,22.97040985]
[1726439235174,23.776884,132.35,132.3,7.5585]
[1726439235397,23.776884,132.33,132.28,15.41280985]
[1726439235887,23.776884,132.33,132.29,7.559]
[1726439236089,23.776884,132.33,132.3,7.5585]
[1726439238205,23.776884,132.33,132.31,7.5577]
[1726439238985,23.776884,132.33,132.3,7.5585]
[1726439239411,23.776884,132.33,132.28,15.41280985]
[1726439239706,31.333784,132.33,132.28,7.5596]
[1726439239901,31.333784,132.33,132.28,22.97240985]
[1726439240214,23.776884,132.33,132.29,7.5591]
[1726439240506,23.776884,132.33,132.29,22.97190985]
[1726439243916,23.776884,132.33,132.3,7.5585]
[1726439245887,20.0,132.34,132.31,7.5579]
[1726439246584,20.0,132.34,132.31,22.97070985]
[1726439247080,20.0,132.35,132.31,22.97070985]
[1726439247287,23.776884,132.34,132.31,22.97070985]
[1726439249206,23.776884,132.34,132.31,7.5579]
[1726439249407,31.333184,132.34,132.3,7.5584]
[1726439249615,31.333184,132.34,132.29,7.5589]
[1726439249616,7.5569,132.33,132.29,7.5589]
[1726439249931,7.5575,132.32,132.28,7.5595]
[1726439250218,23.776884,132.31,132.28,7.5595]
[1726439263421,23.776884,132.31,132.29,7.5591]
[1726439267625,23.776884,132.32,132.29,7.5591]
[1726439269733,23.776884,132.32,132.3,7.5584]
[1726439270028,23.776884,132.32,132.31,7.558]
[1726439270227,35.46080372,132.35,132.31,22.97080985]
[1726439270439,27.5558,132.35,132.31,22.97080985]
[1726439270647,36.77839911,132.35,132.31,22.97080985]
[1726439271130,35.46205233,132.35,132.31,22.97080985]
[1726439271318,23.776884,132.34,132.31,22.97080985]
[1726439271517,23.776884,132.34,132.31,7.558]
[1726439273740,20.0,132.35,132.32,7.5574]
[1726439274532,385.6,132.36,132.34,22.96870985]
[1726439274726,0.2487391,132.37,132.34,22.96870985]
[1726439275045,0.2487391,132.37,132.33,22.96940985]
[1726439275046,7.8034391,132.37,132.33,22.96940985]
[1726439275247,0.2487391,132.37,132.3,37.84210985]
[1726439275622,7.5561,132.35,132.31,7.5578]
[1726439276249,23.776884,132.34,132.31,7.5578]
[1726439277349,23.776884,132.34,132.3,22.4293]
[1726439278046,7.557,132.33,132.29,7.5589]
[1726439278231,23.776884,132.32,132.29,7.5589]
[1726439279652,23.776884,132.32,132.28,7.5595]
[1726439280475,31.334384,132.32,132.28,7.5595]
[1726439281638,23.776884,132.32,132.28,7.5595]
[1726439282651,23.776884,132.32,132.29,7.5588]
[1726439282953,43.776884,132.33,132.29,7.5588]
[1726439283527,43.776884,132.33,132.3,7.5585]
[1726439283956,20.0,132.35,132.31,7.5578]
[1726439284134,20.0,132.35,132.3,15.41280985]
[1726439284333,20.0,132.35,132.32,7.5572]
[1726439284542,20.0,132.35,132.27,22.2227]
[1726439284749,20.0,132.35,132.28,15.41280985]
[1726439284955,20.0,132.35,132.27,22.2227]
[1726439284956,27.5558,132.35,132.31,7.5579]
[1726439285154,20.0,132.35,132.32,7.5572]
[1726439285736,20.0,132.35,132.33,7.5565]
[1726439285958,20.0,132.35,132.34,7.5562]
[1726439286177,385.6,132.36,132.33,15.41280985]
[1726439286451,7.8033391,132.37,132.33,15.41280985]
[1726439286656,7.8033391,132.37,132.32,15.41280985]
[1726439287259,20.0,132.36,132.33,7.5568]
[1726439291553,23.776884,132.35,132.3,15.41280985]
[1726439291854,23.776884,132.35,132.31,7.5574]
[1726439293756,31.332684,132.35,132.31,7.5574]
[1726439293963,23.776884,132.33,132.3,7.5584]
[1726439294669,31.334184,132.33,132.29,7.5589]
[1726439299289,31.334184,132.33,132.27,29.7828]
[1726439299290,31.334984,132.31,132.27,29.7828]
[1726439299587,23.776884,132.3,132.27,29.7828]
[1726439300591,23.776884,132.3,132.27,7.5601]
[1726439300888,23.776884,132.3,132.28,7.5596]
[1726439301895,23.776884,132.31,132.28,7.5596]
[1726439327685,23.776884,132.32,132.29,7.5587]
[1726439327891,43.776884,132.32,132.28,15.41280985]
[1726439328291,43.776884,132.32,132.3,7.5583]
[1726439328907,43.776884,132.32,132.29,7.5589]
[1726439335112,51.334584,132.32,132.28,7.5597]
[1726439335691,23.776884,132.3,132.27,7.5599]
[1726439337599,23.776884,132.3,132.28,7.5597]
[1726439340217,23.776884,132.31,132.28,7.5597]
[1726439340423,23.776884,132.31,132.3,7.5585]
[1726439340997,20.0,132.32,132.29,22.97170985]
[1726439341197,20.0,132.32,132.29,7.5589]
[1726439342404,23.776884,132.31,132.29,7.5589]
[1726439354438,23.776884,132.31,132.26,15.41280985]
[1726439355046,23.776884,132.29,132.24,21.1172]
[1726439355229,23.776884,132.29,132.23,15.66154895]
[1726439355617,20.0,132.26,132.23,0.2487391]
[1726439355823,7.562,132.24,132.23,0.2487391]
[1726439356025,51.338884,132.24,132.23,0.2487391]
[1726439356238,124.078884,132.24,132.23,0.2487391]
[1726439356640,101.338884,132.24,132.23,0.2487391]
[1726439356819,114.70065733,132.24,132.23,0.2487391]
[1726439358055,114.70065733,132.24,132.15,0.2487391]
[1726439358056,51.341084,132.2,132.15,0.2487391]
[1726439363759,51.341084,132.2,132.15,7.8156391]
[1726439364348,51.341084,132.2,132.16,7.5662]
[1726439364546,27.5642,132.2,132.16,7.5662]
[1726439365255,27.5642,132.2,132.15,7.8157391]
[1726439365753,59.25586069,132.2,132.15,7.8157391]
[1726439368857,59.25586069,132.2,132.16,7.5665]
[1726439375770,60.57434641,132.2,132.16,7.5665]
[1726439379077,60.57434641,132.2,132.15,7.8156391]
[1726439379368,60.57434641,132.2,132.15,0.2487391]
[1726439380144,110.57434641,132.2,132.15,0.2487391]
[1726439380374,140.24001974,132.2,132.15,0.2487391]
[1726439380619,51.343384,132.16,132.15,0.2487391]
[1726439381289,59.26441263,132.16,132.15,0.2487391]
[1726439383785,51.69791263,132.16,132.15,0.2487391]
[1726439384079,43.776884,132.16,132.15,0.2487391]
[1726439385487,51.343384,132.16,132.15,0.2487391]
[1726439392807,43.776884,132.16,132.15,0.2487391]
[1726439397500,23.776884,132.16,132.15,0.2487391]
[1726439399800,20.0,132.17,132.15,0.2487391]
[1726439400187,20.0,132.17,132.15,7.8157391]
[1726439400389,1.31886953,132.19,132.15,15.66154895]
[1726439401420,7.5643,132.2,132.16,7.5665]
[1726439401712,20.0,132.2,132.17,7.5659]
[1726439402213,56.92567333,132.24,132.16,37.41120985]
[1726439402214,7.5631,132.23,132.18,22.97810985]
[1726439402419,7.5642,132.21,132.16,29.5648]
[1726439402716,7.5649,132.19,132.16,21.9984]
[1726439403393,51.31854428,132.23,132.16,21.9984]
[1726439403394,7.5644,132.2,132.16,21.9984]
[1726439403713,23.776884,132.19,132.16,29.5648]
[1726439404808,23.776884,132.2,132.17,22.97870985]
[1726439405115,23.776884,132.21,132.17,22.97870985]
[1726439405704,23.776884,132.21,132.17,7.5659]
[1726439406002,23.776884,132.2,132.17,22.97870985]
[1726439407791,31.341184,132.2,132.16,29.5647]
[1726439407991,23.776884,132.17,132.16,21.9984]
[1726439410033,23.776884,132.18,132.15,0.2487391]
[1726439410322,23.776884,132.16,132.15,0.2487391]
[1726439411516,20.0,132.2,132.15,15.66154895]
[1726439411741,27.5644,132.2,132.16,7.5664]
[1726439412036,7.5649,132.19,132.15,23.22844895]
[1726439412331,20.0,132.2,132.16,7.5664]
[1726439412625,20.0,132.2,132.16,15.41280985]
[1726439413004,27.5644,132.2,132.16,22.97920985]
[1726439414029,23.776884,132.19,132.16,22.97920985]
[1726439416833,23.776884,132.19,132.17,7.5659]
[1726439417040,23.776884,132.2,132.17,22.97870985]
[1726439417239,20.0,132.21,132.18,22.97820985]
[1726439417739,20.0,132.21,132.18,7.5654]
[1726439419815,23.776884,132.2,132.17,30.2121]
[1726439420442,23.776884,132.2,132.17,7.5659]
[1726439420846,23.776884,132.2,132.18,7.5654]
[1726439421517,15.80681761,132.23,132.19,7.5647]
[1726439421720,15.80681761,132.23,132.19,22.97750985]
[1726439421721,23.776884,132.22,132.19,22.97750985]
[1726439422923,23.776884,132.22,132.19,7.5647]
[1726439423345,23.776884,132.22,132.18,22.97800985]
[1726439423535,23.776884,132.22,132.18,7.5652]
[1726439423739,31.340084,132.22,132.18,7.5652]
[1726439425550,23.776884,132.22,132.19,7.5644]
[1726439427359,8.88114428,132.23,132.2,15.41280985]
[1726439427360,1.31854428,132.23,132.2,15.41280985]
[1726439427547,1.31854428,132.23,132.21,22.97610985]
[1726439427742,7.5619,132.25,132.21,22.97610985]
[1726439428759,23.776884,132.24,132.21,22.97610985]
[1726439429053,23.776884,132.24,132.21,7.5633]
[1726439429855,20.0,132.24,132.22,7.5627]
[1726439430172,20.0,132.24,132.21,7.5635]
[1726439431035,20.0,132.24,132.21,22.97630985]
[1726439431243,15.80644532,132.26,132.15,0.2487391]
[1726439431244,1.31957199,132.26,132.23,15.41280985]
[1726439431554,0.2487391,132.29,132.24,15.41280985]
[1726439431854,0.2487391,132.29,132.2,22.5425]
[1726439431855,1.31926559,132.28,132.25,15.41280985]
[1726439432042,1.31926559,132.28,132.25,22.97420985]
[1726439432250,7.8082391,132.29,132.2,22.5425]
[1726439432251,0.2487391,132.29,132.27,22.97300985]
[1726439432549,0.2487391,132.29,132.26,22.97350985]
[1726439433057,0.2487391,132.29,132.25,22.97410985]
[1726439433442,23.776884,132.28,132.25,22.97410985]
[1726439434153,23.776884,132.28,132.26,22.97360985]
[1726439434530,0.2487391,132.29,132.27,22.97300985]
[1726439434730,0.2487391,132.29,132.27,15.41280985]
[1726439435143,0.2487391,132.29,132.27,22.97300985]
[1726439436133,0.2487391,132.29,132.27,15.41280985]
[1726439436332,24.0256231,132.29,132.27,15.41280985]
[1726439436841,24.0256231,132.29,132.26,22.97350985]
[1726439439055,0.2487391,132.29,132.27,22.97290985]
[1726439439268,0.2487391,132.29,132.28,15.41280985]
[1726439441371,0.2487391,132.29,132.27,7.5601]
[1726439445866,0.2487391,132.29,132.25,37.52810985]
[1726439446238,23.776884,132.28,132.25,45.08890985]
[1726439446865,23.776884,132.28,132.26,22.97360985]
[1726439447369,24.0256231,132.29,132.26,22.97360985]
[1726439447839,7.8078391,132.29,132.26,15.41280985]
[1726439448346,23.776884,132.28,132.26,15.41280985]
[1726439449271,23.776884,132.28,132.26,22.97350985]
[1726439449954,24.0256231,132.29,132.26,22.97350985]
[1726439450142,7.8079391,132.29,132.26,15.41280985]
[1726439450340,23.776884,132.28,132.26,15.41280985]
[1726439452447,23.776884,132.28,132.25,45.08930985]
[1726439453075,23.776884,132.28,132.26,7.5608]
[1726439453371,23.776884,132.28,132.26,22.97360985]
[1726439460855,23.776884,132.28,132.22,6.2414]
[1726439461055,23.776884,132.28,132.24,15.41280985]
[1726439461372,23.776884,132.26,132.23,22.97510985]
[1726439461579,23.776884,132.26,132.18,21.5651]
[1726439461751,23.776884,132.26,132.2,15.41280985]
[1726439461950,23.776884,132.23,132.2,22.97660985]
[1726439462153,7.5616,132.25,132.21,7.5636]
[1726439462376,23.776884,132.24,132.21,7.5636]
[1726439463660,31.339284,132.24,132.19,22.97720985]
[1726439463980,23.776884,132.22,132.19,7.5644]
[1726439464176,31.340084,132.22,132.18,7.5652]
[1726439464477,7.564,132.21,132.17,7.5656]
[1726439464789,23.776884,132.2,132.17,7.5656]
[1726439464988,31.341284,132.2,132.14,38.33250985]
[1726439465573,27.5648,132.19,132.15,7.8157391]
[1726439465774,23.776884,132.18,132.15,7.8157391]
[1726439466354,43.776884,132.19,132.15,7.8157391]
[1726439467792,51.341984,132.19,132.15,0.2487391]
[1726439467955,7.5655,132.18,132.15,0.2487391]
[1726439468373,23.776884,132.17,132.15,0.2487391]
[1726439468965,7.566,132.17,132.15,0.2487391]
[1726439469177,23.776884,132.16,132.15,0.2487391]
[1726439469556,51.343384,132.16,132.15,0.2487391]
[1726439471681,59.25386917,132.16,132.15,0.2487391]
[1726439473175,60.57437563,132.16,132.15,0.2487391]
[1726439474487,9.23099163,132.16,132.15,0.2487391]
[1726439474692,1.32050646,132.16,132.15,0.2487391]
[1726439475584,20.0,132.18,132.16,7.5662]
[1726439475785,385.6,132.19,132.16,7.5662]
[1726439475983,1.32014328,132.19,132.17,22.97860985]
[1726439476311,1.32014328,132.19,132.16,22.97920985]
[1726439476678,7.5642,132.21,132.16,22.97920985]
[1726439476903,20.0,132.2,132.17,7.5659]
[1726439477278,23.776884,132.19,132.17,7.5659]
[1726439478702,23.776884,132.19,132.17,22.97870985]
[1726439478880,1.32005314,132.21,132.19,7.5648]
[1726439479081,1.32005314,132.21,132.19,22.97760985]
[1726439480100,20.0,132.22,132.19,22.97760985]
[1726439480280,20.0,132.23,132.19,22.97760985]
[1726439480480,21.31976716,132.23,132.19,22.97760985]
[1726439481305,23.776884,132.22,132.19,22.97760985]
[1726439484489,23.776884,132.22,132.19,7.5648]
[1726439484812,23.776884,132.22,132.17,7.5655]
[1726439485804,20.0,132.21,132.16,45.65470985]
[1726439486003,31.341584,132.2,132.16,30.2419]
[1726439486510,23.776884,132.2,132.16,45.65470985]
[1726439488917,31.341184,132.2,132.16,30.2419]
[1726439489488,31.341184,132.2,132.16,7.5665]
[1726439492619,23.776884,132.2,132.17,7.5659]
[1726439492914,23.776884,132.2,132.17,7.5658]
[1726439495922,23.776884,132.2,132.15,15.66154895]
[1726439496499,7.5649,132.19,132.15,23.22814895]
[1726439496700,31.341284,132.2,132.16,7.5665]
[1726439499729,23.776884,132.2,132.17,7.5659]
[1726439500745,23.776884,132.2,132.17,22.97820985]
[1726439500931,23.776884,132.2,132.18,22.97820985]
[1726439502418,23.776884,132.2,132.19,22.97760985]
[1726439503906,386.91976216,132.23,132.21,7.5636]
[1726439504109,386.91976216,132.23,132.21,22.97640985]
[1726439504848,385.6,132.23,132.21,22.97640985]
[1726439505227,23.776884,132.22,132.21,22.97640985]
[1726439505423,23.776884,132.22,132.21,7.5636]
[1726439506444,1.31960076,132.25,132.23,7.5625]
[1726439506617,1.31960076,132.25,132.23,22.97530985]
[1726439506816,7.5607,132.27,132.23,22.97530985]
[1726439507017,8.88009189,132.27,132.23,22.97530985]
[1726439507932,23.776884,132.26,132.23,22.97530985]
[1726439510121,31.337784,132.26,132.21,15.41280985]
[1726439510322,23.776884,132.26,132.21,15.41280985]
[1726439510523,7.5615,132.25,132.2,22.97690985]
[1726439510736,23.776884,132.24,132.21,7.5635]
[1726439511417,23.776884,132.24,132.2,22.97690985]
[1726439511734,23.776884,132.24,132.18,21.6467]
[1726439512051,23.776884,132.24,132.19,22.97710985]
[1726439512649,23.776884,132.22,132.19,22.97710985]
[1726439513553,31.340084,132.22,132.19,15.41280985]
[1726439513733,23.776884,132.22,132.19,15.41280985]
[1726439514235,23.776884,132.22,132.18,15.41280985]
[1726439516657,23.776884,132.22,132.18,22.97780985]
[1726439518547,23.776884,132.21,132.17,7.5658]
[1726439518931,31.341084,132.21,132.17,7.5658]
[1726439519131,31.341084,132.21,132.16,7.5664]
[1726439519328,20.0,132.2,132.15,7.8158391]
[1726439519535,23.776884,132.19,132.16,7.5661]
[1726439521663,23.776884,132.19,132.17,7.5658]
[1726439521867,23.776884,132.19,132.18,7.5654]
[1726439522451,23.776884,132.22,132.19,7.5646]
[1726439522857,23.776884,132.21,132.18,7.5653]
[1726439526573,23.776884,132.19,132.16,7.5662]
[1726439529868,23.776884,132.2,132.17,7.5658]
[1726439530048,23.776884,132.2,132.18,7.5654]
[1726439535754,23.776884,132.2,132.17,7.5657]
[1726439543072,23.776884,132.2,132.18,7.5653]
[1726439548987,23.776884,132.2,132.17,7.5659]
[1726439550371,23.776884,132.2,132.18,7.5652]
[1726439551895,1.31997866,132.21,132.2,7.5642]
[1726439552198,1.31997866,132.21,132.19,7.5646]
[1726439552695,7.90497509,132.22,132.19,7.5646]
[1726439553086,23.776884,132.21,132.17,22.4331]
[1726439553304,23.776884,132.21,132.18,7.5654]
[1726439557190,31.340884,132.21,132.16,7.566]
[1726439557494,31.340884,132.21,132.17,7.5659]
[1726439557495,31.340684,132.21,132.17,7.5659]
[1726439557876,39.25390404,132.21,132.17,7.5659]
[1726439559798,31.69010404,132.21,132.18,7.5654]
[1726439560296,31.69010404,132.21,132.19,7.5648]
[1726439560786,31.69010404,132.21,132.18,7.5652]
[1726439569680,31.69010404,132.21,132.16,15.41280985]
[1726439569907,31.69010404,132.21,132.15,15.66154895]
[1726439570601,39.25390404,132.21,132.17,7.5659]
[1726439573200,23.776884,132.19,132.17,7.5659]
[1726439577905,23.776884,132.2,132.17,7.5659]
[1726439581321,31.341184,132.2,132.17,7.5659]
[1726439582026,23.776884,132.2,132.17,7.5659]
[1726439583938,7.5639,132.21,132.17,7.5659]
[1726439584243,20.0,132.22,132.18,15.41280985]
[1726439584524,20.0,132.22,132.19,7.5647]
[1726439585295,23.776884,132.21,132.19,7.5647]
[1726439585491,31.41503205,132.25,132.21,7.5633]
[1726439585704,27.5616,132.25,132.21,22.97610985]
[1726439585903,7.562,132.24,132.2,22.97680985]
[1726439587823,23.776884,132.23,132.2,22.97680985]
[1726439588235,23.776884,132.23,132.2,7.564]
[1726439589948,9.22905931,132.22,132.2,7.564]
[1726439592054,23.776884,132.23,132.2,7.564]
[1726439603560,31.339484,132.23,132.2,7.564]
[1726439603870,7.5631,132.22,132.18,21.5959]
[1726439604176,7.5633,132.22,132.18,29.161]
[1726439604371,23.776884,132.21,132.18,44.57380985]
[1726439605568,9.22756393,132.24,132.2,15.41280985]
[1726439605569,31.339484,132.23,132.2,15.41280985]
[1726439605772,8.8808619,132.24,132.2,22.97700985]
[1726439606077,8.8808619,132.24,132.21,15.41280985]
[1726439607266,23.776884,132.23,132.21,15.41280985]
[1726439607465,23.776884,132.23,132.2,22.97700985]
[1726439608469,1.3186619,132.24,132.22,22.97550985]
[1726439608668,15.46957519,132.26,132.22,22.97550985]
[1726439608669,15.46957519,132.26,132.23,15.41280985]
[1726439608884,7.5609,132.26,132.23,15.41280985]
[1726439609051,8.87888666,132.27,132.23,22.97520985]
[1726439609246,8.87888666,132.27,132.24,15.41280985]
[1726439609660,1.31848666,132.27,132.25,15.41280985]
[1726439609864,1.31848666,132.27,132.26,15.41280985]
[1726439610077,393.4078391,132.29,132.26,15.41280985]
[1726439610278,393.4078391,132.29,132.25,22.97410985]
[1726439611983,7.8078391,132.29,132.25,22.97410985]
[1726439612371,31.336584,132.28,132.24,22.97470985]
[1726439615065,31.336584,132.28,132.25,15.41280985]
[1726439616987,23.776884,132.28,132.25,22.97420985]
[1726439617278,23.776884,132.28,132.26,15.41280985]
[1726439617479,1.56695089,132.29,132.27,15.41280985]
[1726439617682,1.56695089,132.29,132.28,15.41280985]
[1726439618058,1.56695089,132.29,132.28,22.97250985]
[1726439618265,0.2487391,132.29,132.28,22.97250985]
[1726439618581,0.2487391,132.29,132.28,24.48396528]
[1726439619565,0.2487391,132.29,132.28,22.97250985]
[1726439620594,0.2487391,132.29,132.28,24.48403098]
[1726439621591,0.2487391,132.29,132.28,22.97250985]
[1726439633514,0.2487391,132.29,132.28,15.41280985]
[1726439633688,0.2487391,132.29,132.27,22.97280985]
[1726439635087,0.2487391,132.29,132.27,7.56]
[1726439635420,0.2487391,132.29,132.27,22.97280985]
[1726439638439,0.2487391,132.29,132.26,7.5608]
[1726439638603,0.2487391,132.29,132.15,10.2487391]
[1726439638799,1.5669359,132.29,132.23,15.41280985]
[1726439639002,23.776884,132.28,132.24,15.41280985]
[1726439640338,31.336984,132.28,132.24,7.5618]
[1726439641163,31.336984,132.28,132.24,22.97460985]
[1726439641632,23.776884,132.28,132.24,22.97460985]
[1726439643945,23.776884,132.28,132.25,7.561]
[1726439644745,23.776884,132.28,132.24,15.41280985]
[1726439645057,23.776884,132.28,132.26,22.97360985]
[1726439647855,1.5669359,132.29,132.27,22.97300985]
[1726439648036,0.2487391,132.29,132.28,15.41280985]
[1726439648440,0.2487391,132.29,132.28,22.97250985]
[1726439654632,0.2487391,132.29,132.27,22.97280985]
[1726439656550,0.2487391,132.29,132.27,7.56]
[1726439656862,7.8078391,132.29,132.26,7.5606]
[1726439657245,23.776884,132.27,132.24,7.5618]
[1726439657449,7.5603,132.27,132.23,7.5625]
[1726439658543,7.5603,132.27,132.24,7.5619]
[1726439659444,20.2487391,132.29,132.26,15.41280985]
[1726439659643,0.2487391,132.29,132.27,15.41280985]
[1726439661058,24.0256231,132.29,132.27,15.41280985]
[1726439661266,24.0256231,132.29,132.26,22.97320985]
[1726439662671,0.2487391,132.29,132.27,22.97290985]
[1726439663251,0.2487391,132.29,132.26,22.97320985]
[1726439665980,23.776884,132.28,132.25,22.97400985]
[1726439666167,31.336584,132.28,132.25,7.5612]
[1726439666669,23.776884,132.28,132.25,7.5612]
[1726439670584,7.5603,132.27,132.24,7.5618]
[1726439672279,23.776884,132.27,132.24,7.5618]
[1726439672858,23.776884,132.27,132.24,15.41280985]
[1726439673074,23.776884,132.28,132.25,15.41280985]
[1726439673385,23.776884,132.28,132.25,7.5612]
[1726439674586,7.5597,132.28,132.25,7.5612]
[1726439676786,7.5606,132.27,132.21,6.0152]
[1726439677082,23.776884,132.26,132.22,15.41280985]
[1726439677484,31.337684,132.26,132.19,16.255]
[1726439677783,7.5614,132.25,132.22,7.5629]
[1726439677959,23.776884,132.26,132.18,6.4867]
[1726439677960,7.5627,132.23,132.18,6.4867]
[1726439678292,23.776884,132.22,132.19,7.5643]
[1726439678875,23.776884,132.22,132.17,7.5656]
[1726439679079,31.340084,132.22,132.18,7.5653]
[1726439680487,23.776884,132.22,132.18,7.5653]
[1726439681165,23.776884,132.22,132.18,22.97810985]
[1726439681991,23.776884,132.22,132.19,7.5648]
[1726439682855,23.776884,132.22,132.15,0.2487391]
[1726439683056,23.776884,132.2,132.15,0.2487391]
[1726439684286,23.776884,132.2,132.16,7.5664]
[1726439691571,23.776884,132.2,132.17,7.566]
[1726439695598,23.776884,132.2,132.15,15.66154895]
[1726439695892,7.5648,132.19,132.15,7.8156391]
[1726439696196,23.776884,132.2,132.15,0.2487391]
[1726439696379,31.341484,132.2,132.16,7.5665]
[1726439698483,7.5654,132.18,132.15,0.2487391]
[1726439698796,23.776884,132.18,132.15,7.8153391]
[1726439700405,23.776884,132.19,132.16,7.5665]
[1726439704911,23.776884,132.19,132.17,7.5659]
[1726439705118,23.776884,132.2,132.17,7.5659]
[1726439707581,23.776884,132.2,132.18,7.5653]
[1726439707788,21.31898973,132.21,132.19,7.5648]
[1726439708003,21.31898973,132.21,132.15,0.2487391]
[1726439708004,20.0,132.21,132.18,15.41280985]
[1726439708215,393.1621,132.24,132.2,7.5639]
[1726439708513,394.4808315,132.24,132.2,7.5639]
[1726439709304,7.5626,132.23,132.19,7.5646]
[1726439709511,23.776884,132.22,132.19,7.5646]
[1726439710715,23.776884,132.23,132.2,7.5642]
[1726439712816,31.339484,132.23,132.19,22.97750985]
[1726439713812,23.776884,132.23,132.2,7.5642]
[1726439714218,31.339484,132.23,132.19,7.5647]
[1726439714521,23.776884,132.23,132.2,15.41280985]
[1726439714820,23.776884,132.23,132.21,7.5636]
[1726439715015,23.776884,132.23,132.19,15.41280985]
[1726439715626,31.339384,132.23,132.2,7.5642]
[1726439715815,31.339384,132.23,132.19,7.5646]
[1726439716431,23.776884,132.23,132.19,7.5646]
[1726439716624,23.776884,132.23,132.22,7.5631]
[1726439716836,31.339584,132.23,132.19,7.5647]